bitfinex/quotes_ETHUSD_20250815
["timestamp","ask_amount","ask_price","bid_price","bid_amount"]
[1755216162155,1.0527,4567.6,4566.7,3.562]
[1755216162588,1.0527,4567.6,4566.0,0.4821]
[1755216162589,0.002,4566.6,4566.2,2.18995796]
[1755216162787,0.002,4566.6,4566.3,3.563]
[1755216162788,0.9374,4566.5,4566.3,3.563]
[1755216162993,0.4527,4566.4,4566.3,5.75293375]
[1755216163491,0.4527,4566.4,4566.3,5.75195685]
[1755216164055,0.002,4566.6,4566.5,2.18986094]
[1755216164490,0.4547,4566.6,4566.5,3.56]
[1755216164697,0.9394,4566.6,4566.5,3.56]
[1755216164904,0.9394,4566.6,4566.5,5.74986094]
[1755216165191,0.4547,4566.6,4566.5,5.74986094]
[1755216166401,0.4547,4566.6,4566.5,5.75086094]
[1755216166895,0.002,4566.6,4566.5,5.75086094]
[1755216167097,0.4547,4566.6,4566.5,3.558]
[1755216167285,0.9394,4566.6,4565.9,5.259]
[1755216167493,0.9394,4566.6,4566.5,0.1096]
[1755216167810,0.9394,4566.6,4566.5,3.6676]
[1755216168999,0.4547,4566.6,4566.5,5.85746094]
[1755216169209,0.002,4566.6,4566.5,5.85746094]
[1755216171392,0.002,4566.6,4566.5,6.66220239]
[1755216171590,0.002,4566.6,4566.5,5.85746094]
[1755216171802,0.9083,4566.6,4566.5,3.6606]
[1755216171993,0.9083,4566.6,4565.5,0.6]
[1755216172300,0.9083,4566.6,4564.2,5.258]
[1755216172301,0.9063,4566.5,4565.6,5.74025725]
[1755216172464,0.002,4566.6,4565.6,5.74025725]
[1755216172799,0.9063,4566.4,4565.3,0.001]
[1755216172990,0.16757916,4566.4,4565.3,0.001]
[1755216173190,0.9063,4566.3,4565.4,3.551]
[1755216173505,2.19030099,4565.6,4565.5,3.552]
[1755216173690,2.19021575,4565.8,4565.5,3.552]
[1755216173893,0.9063,4565.6,4565.5,3.552]
[1755216174888,0.9063,4565.6,4565.3,0.001]
[1755216175064,0.9063,4565.5,4565.3,0.001]
[1755216175265,0.9063,4565.5,4565.4,3.549]
[1755216175476,5.19038857,4565.4,4565.3,0.001]
[1755216175677,6.20922073,4565.4,4565.3,0.001]
[1755216181095,3.20922073,4565.4,4565.3,0.001]
[1755216182212,3.31882073,4565.4,4565.3,0.001]
[1755216183691,3.26882073,4565.4,4565.3,0.001]
[1755216184511,0.67233216,4565.4,4565.3,0.001]
[1755216184709,0.5598,4565.4,4565.3,0.001]
[1755216184916,2.75018857,4565.4,4565.3,0.001]
[1755216185382,0.21902158,4565.7,4565.3,0.001]
[1755216185719,0.1096,4565.6,4565.3,0.001]
[1755216185890,2.29989538,4565.6,4565.3,0.001]
[1755216186091,0.1096,4565.6,4565.3,0.001]
[1755216186407,0.4502,4565.5,4565.3,0.001]
[1755216186717,2.19038857,4565.4,4565.3,0.001]
[1755216186919,5.19038857,4565.4,4565.3,0.001]
[1755216187218,6.09668857,4565.4,4565.3,0.001]
[1755216187617,36.09668857,4565.4,4565.3,0.001]
[1755216188314,36.09668857,4565.4,4565.3,1e-08]
[1755216188515,36.38529101,4565.4,4565.3,1e-08]
[1755216189019,36.85518362,4565.4,4565.3,1e-08]
[1755216189354,40.39118362,4565.4,4565.3,1e-08]
[1755216191117,2.19082046,4564.5,4564.4,1e-08]
[1755216191297,8.72482046,4564.5,4564.4,1e-08]
[1755216191498,39.63112046,4564.5,4564.4,1e-08]
[1755216192482,5.19082046,4564.5,4564.4,1e-08]
[1755216192999,5.64102046,4564.5,4564.4,1e-08]
[1755216193797,6.09712046,4564.5,4564.4,1e-08]
[1755216194228,36.09712046,4564.5,4564.4,1e-08]
[1755216195132,35.64102046,4564.5,4564.4,1e-08]
[1755216195291,5.19082046,4564.5,4564.4,1e-08]
[1755216196622,36.09712046,4564.5,4564.4,1e-08]
[1755216196852,36.20672046,4564.5,4564.4,1e-08]
[1755216197417,35.75062046,4564.5,4564.4,1e-08]
[1755216197731,39.27762046,4564.5,4564.4,1e-08]
[1755216198704,39.27762046,4564.5,4564.3,1e-08]
[1755216198705,5.19086846,4564.4,4564.3,1e-08]
[1755216198938,36.09716846,4564.4,4564.3,1e-08]
[1755216199811,36.85570994,4564.4,4564.3,1e-08]
[1755216200011,36.85570137,4564.4,4564.3,1e-08]
[1755216200220,36.56741304,4564.4,4564.3,1e-08]
[1755216201007,36.56741304,4564.4,4563.3,0.001]
[1755216201008,5.4795189,4564.3,4563.8,1e-08]
[1755216201234,2.19110848,4563.9,4563.8,1e-08]
[1755216201439,38.71410848,4563.9,4563.8,1e-08]
[1755216201635,40.14285306,4563.9,4563.8,1e-08]
[1755216201866,39.68231337,4563.9,4563.8,1e-08]
[1755216202006,40.14331337,4563.9,4563.8,1e-08]
[1755216202212,40.43191581,4563.9,4563.8,1e-08]
[1755216204545,40.14331337,4563.9,4563.8,1e-08]
[1755216204945,2.82266003,4563.9,4563.8,1e-08]
[1755216205149,2.35195514,4563.9,4563.8,1e-08]
[1755216205582,5.35195514,4563.9,4563.8,1e-08]
[1755216205733,5.82290758,4563.9,4563.8,1e-08]
[1755216205934,5.35195514,4563.9,4563.8,1e-08]
[1755216206129,5.82294012,4563.9,4563.8,1e-08]
[1755216206894,0.16084666,4563.9,4563.8,1e-08]
[1755216207067,2.35195514,4563.9,4563.8,0.45630001]
[1755216207265,2.19110848,4563.9,4563.8,0.45630001]
[1755216207944,2.19110848,4563.9,4563.8,1e-08]
[1755216208179,2.62932341,4563.9,4563.8,1e-08]
[1755216208737,2.90244401,4563.9,4563.8,1e-08]
[1755216209135,0.71133553,4563.9,4563.8,1e-08]
[1755216209339,0.2731206,4563.9,4563.8,1e-08]
[1755216209794,2.46422908,4563.9,4563.8,1e-08]
[1755216210341,2.92522908,4563.9,4563.8,1e-08]
[1755216210543,36.42272908,4563.9,4563.8,1e-08]
[1755216210745,37.18243804,4563.9,4563.8,1e-08]
[1755216210946,37.38698033,4563.9,4563.8,1e-08]
[1755216211379,2.306,4563.3,4562.4,0.001]
[1755216211555,2.19211714,4561.8,4561.7,0.001]
[1755216211760,0.1096,4561.8,4561.7,0.001]
[1755216212076,2.30171714,4561.8,4561.7,0.001]
[1755216212241,9.16811714,4561.8,4561.7,0.001]
[1755216212446,2.19282129,4560.4,4559.8,0.6037]
[1755216212676,2.1926734,4560.7,4559.8,0.6037]
[1755216212845,2.19266172,4560.7,4559.8,0.6037]
[1755216213267,0.87774474,4561.7,4559.8,0.4563]
[1755216213587,2.19251442,4561.0,4560.0,2.19298245]
[1755216213878,2.1924742,4561.1,4559.9,2.79672873]
[1755216214058,2.1924742,4561.1,4560.0,2.19298068]
[1755216214578,3.461,4561.5,4559.9,0.6037]
[1755216214879,5.65326542,4561.5,4560.1,2.19293281]
[1755216215190,5.65326542,4561.5,4560.0,0.4563]
[1755216215191,2.19248152,4561.1,4560.0,0.4563]
[1755216215350,2.63096329,4561.1,4560.0,0.4563]
[1755216215747,0.43848177,4561.1,4560.1,2.1929245]
[1755216215995,5.19226972,4561.5,4560.3,2.19282627]
[1755216216191,2.19235111,4561.4,4560.2,2.79658625]
[1755216216381,2.19236665,4561.3,4560.2,2.79658625]
[1755216216852,2.19241401,4561.2,4560.2,0.6037]
[1755216217044,3.523,4561.7,4560.2,0.6037]
[1755216217245,5.192271,4561.5,4560.3,2.79649473]
[1755216217494,5.192271,4561.5,4559.9,2.19299064]
[1755216217495,0.461,4561.5,4559.9,2.19299064]
[1755216217696,0.461,4561.5,4559.8,0.4563]
[1755216217981,2.192612,4560.8,4559.8,0.4563]
[1755216218484,2.65346249,4561.1,4560.0,2.19297886]
[1755216218686,2.96977457,4561.1,4560.0,2.19297886]
[1755216219456,0.77731208,4561.1,4559.5,5.263]
[1755216219787,0.6,4560.7,4559.5,5.263]
[1755216219985,2.19269442,4560.6,4559.6,2.19317483]
[1755216220186,0.6,4560.7,4559.5,5.263]
[1755216220388,0.75585,4560.7,4559.7,2.19309462]
[1755216220693,0.75585,4560.7,4559.6,0.4563]
[1755216220694,0.6,4560.7,4559.6,0.4563]
[1755216220850,0.6,4560.7,4559.8,0.4563]
[1755216221053,0.6,4560.7,4559.8,3.9753]
[1755216221280,0.6,4560.7,4559.9,2.19302431]
[1755216221482,0.6,4560.7,4559.8,0.4563]
[1755216221691,2.19270211,4560.6,4559.8,0.4563]
[1755216221907,2.19277134,4560.5,4559.8,0.4563]
[1755216222089,2.19271548,4560.6,4559.8,0.4563]
[1755216222313,0.1096,4560.5,4559.8,0.1096]
[1755216222484,2.19288224,4560.3,4559.8,0.1096]
[1755216222793,2.19292663,4560.2,4559.8,0.1096]
[1755216222972,2.19290616,4560.2,4559.6,0.1096]
[1755216223356,2.19281178,4560.4,4559.6,0.1096]
[1755216223584,0.1096,4560.5,4559.6,0.1096]
[1755216223890,0.1096,4560.5,4559.6,2.30277052]
[1755216224087,2.3023462,4560.5,4559.6,0.1096]
[1755216224390,0.1096,4560.5,4559.6,0.1096]
[1755216224591,0.1096,4559.7,4559.0,0.2251726]
[1755216224890,2.19333604,4559.3,4559.0,0.1155726]
[1755216225092,2.19333604,4559.3,4559.0,0.001]
[1755216225391,2.19341536,4559.1,4559.0,0.001]
[1755216225592,0.27573961,4559.1,4559.0,0.001]
[1755216227392,0.1096,4559.1,4559.0,0.001]
[1755216227596,0.1096,4559.9,4559.1,2.19341536]
[1755216227895,0.1096,4560.2,4559.5,0.1096]
[1755216230401,0.1096,4560.2,4559.6,2.19317307]
[1755216230799,0.1096,4560.2,4559.5,0.1096]
[1755216230998,0.1096,4560.2,4559.5,2.30278581]
[1755216231204,0.27203835,4560.2,4559.5,2.30278581]
[1755216231400,0.1096,4560.2,4559.5,2.30278581]
[1755216231704,0.1096,4560.6,4560.0,0.1096]
[1755216231912,0.1096,4560.6,4560.0,4.3576]
[1755216232972,0.27645654,4560.6,4560.0,4.3576]
[1755216233185,0.1096,4560.6,4560.0,4.3576]
[1755216233732,0.1096,4560.6,4560.0,6.55056293]
[1755216233935,0.1096,4560.6,4560.0,4.3576]
[1755216234228,0.1096,4560.6,4560.0,6.55054306]
[1755216234434,0.1096,4560.6,4560.0,4.3576]
[1755216235317,0.1096,4560.6,4560.0,6.5505456]
[1755216235523,0.1096,4560.6,4560.1,2.19292397]
[1755216236022,0.7096,4560.7,4560.6,2.8904]
[1755216237221,0.87499185,4560.7,4560.6,2.8904]
[1755216238104,3.06763771,4560.7,4560.6,2.8904]
[1755216238813,0.87499185,4560.7,4560.6,2.8904]
[1755216239916,1.34939185,4560.7,4560.6,2.8904]
[1755216240596,0.76539185,4560.7,4560.6,2.8904]
[1755216240815,0.1096,4561.1,4560.6,5.08309394]
[1755216241000,0.4744,4561.6,4560.6,5.08309394]
[1755216241001,0.16450575,4561.6,4560.6,3.14916395]
[1755216241200,0.1096,4561.7,4561.0,2.19250164]
[1755216241418,2.19174371,4562.6,4562.0,0.1096]
[1755216241615,2.30129051,4562.7,4561.9,3.495]
[1755216241815,0.1096,4562.7,4562.0,2.30162104]
[1755216242062,0.1096,4562.7,4562.0,0.1096]
[1755216242216,0.4744,4562.6,4562.0,0.1096]
[1755216242414,0.4744,4562.6,4561.3,3.6056]
[1755216242415,2.19206912,4561.9,4561.3,3.6056]
[1755216242603,2.66646912,4561.9,4561.3,3.6056]
[1755216242798,0.79800691,4561.9,4561.2,3.496]
[1755216243032,0.1096,4561.6,4561.2,3.496]
[1755216243536,0.33081911,4562.5,4561.5,0.1096]
[1755216243537,0.1096,4562.2,4561.5,0.1096]
[1755216244135,0.1096,4562.2,4561.5,2.30185805]
[1755216244320,0.1096,4562.2,4561.5,0.1096]
[1755216244637,0.1096,4562.2,4561.5,2.30185007]
[1755216245201,0.002,4561.7,4561.5,2.30185007]
[1755216245606,0.002,4561.7,4561.5,0.1096]
[1755216247027,0.002,4561.7,4561.5,2.30184623]
[1755216247235,0.002,4561.7,4561.5,0.1096]
[1755216247844,0.4764,4561.7,4561.5,0.1096]
[1755216248142,0.4764,4561.7,4561.5,4.3576]
[1755216248348,0.002,4561.7,4561.5,4.3576]
[1755216249910,0.4764,4561.7,4561.5,4.3576]
[1755216250641,0.002,4561.7,4561.6,2.19221325]
[1755216250844,0.002,4561.7,4561.6,3.19619458]
[1755216251048,0.002,4561.7,4561.6,3.83591671]
[1755216251249,0.1096,4563.4,4561.7,3.0]
[1755216251545,3.485,4564.4,4561.9,3.0]
[1755216251546,0.1096,4563.7,4561.9,3.0]
[1755216251858,0.1096,4564.0,4563.2,0.1096]
[1755216252022,0.4744,4564.5,4563.5,2.19130053]
[1755216252223,0.1096,4564.3,4563.5,0.1096]
[1755216252647,0.4764,4563.6,4563.5,0.1096]
[1755216252947,0.4764,4563.6,4562.1,5.19194424]
[1755216252948,0.4764,4563.6,4563.2,3.486]
[1755216253347,0.002,4563.6,4563.3,2.19139017]
[1755216253525,0.002,4563.6,4563.4,0.1096]
[1755216254020,0.4764,4563.6,4563.4,0.1096]
[1755216254227,0.4764,4563.6,4563.4,3.5956]
[1755216254228,0.4744,4563.5,4563.4,3.5956]
[1755216255052,0.002,4563.6,4563.4,3.5956]
[1755216255351,0.4744,4563.5,4562.0,2.19198061]
[1755216255538,0.1096,4563.4,4562.7,0.1096]
[1755216255736,0.584,4563.4,4562.8,3.487]
[1755216255939,0.1096,4563.4,4562.8,3.487]
[1755216257152,0.002,4563.6,4563.0,0.1096]
[1755216257618,2.1932659,4563.6,4563.0,0.1096]
[1755216257816,0.4744,4563.5,4563.0,0.1096]
[1755216258016,1.044,4563.4,4563.0,3.484]
[1755216258212,0.4744,4563.3,4563.0,3.484]
[1755216258447,0.1096,4563.4,4563.0,3.484]
[1755216258651,0.002,4563.6,4563.0,3.484]
[1755216258853,0.002,4563.6,4563.3,0.1096]
[1755216260846,2.19134855,4563.4,4561.5,4.248]
[1755216261055,2.19154065,4563.0,4562.4,0.1096]
[1755216261349,2.19154065,4563.0,4562.4,3.5936]
[1755216261556,2.19159606,4562.9,4562.5,3.483]
[1755216262065,0.4386,4562.8,4562.4,0.1096]
[1755216262445,2.791544,4563.0,4562.4,0.1096]
[1755216262625,0.6,4563.0,4562.4,0.1096]
[1755216262820,0.4386,4562.9,4562.3,3.483]
[1755216263158,2.19181997,4562.5,4562.3,3.483]
[1755216263459,2.63041997,4562.5,4562.3,3.483]
[1755216263624,2.63042886,4562.4,4562.3,3.483]
[1755216264167,0.4386,4562.4,4562.3,3.483]
[1755216264319,0.1096,4562.6,4562.3,3.483]
[1755216264519,2.63038189,4562.5,4562.3,3.483]
[1755216264919,2.19182886,4562.4,4562.3,3.483]
[1755216265649,2.63042886,4562.4,4562.3,3.483]
[1755216265851,0.4386,4562.4,4560.9,3.4876]
[1755216266027,0.1096,4562.2,4561.6,0.1096]
[1755216266228,0.1096,4562.2,4561.7,3.481]
[1755216266419,0.5482,4562.2,4561.7,3.481]
[1755216266623,2.30152972,4562.2,4561.7,3.481]
[1755216266826,2.19271625,4560.6,4560.1,0.001]
[1755216267016,2.19331914,4559.3,4558.5,0.001]
[1755216267220,2.63191914,4559.3,4558.5,0.001]
[1755216267446,3.12091914,4559.3,4559.2,0.001]
[1755216267741,2.79309229,4559.3,4559.2,0.001]
[1755216267949,3.28209229,4559.3,4559.2,0.001]
[1755216269563,2.35449229,4559.3,4559.2,0.001]
[1755216270220,0.16117315,4559.3,4559.2,0.001]
[1755216270426,3.0,4560.0,4559.2,0.001]
[1755216270641,2.19313491,4559.7,4559.2,0.001]
[1755216270835,3.0,4560.0,4559.2,0.001]
[1755216271151,2.19317594,4559.6,4559.2,0.001]
[1755216271352,0.16804421,4560.0,4559.2,0.001]
[1755216271554,2.19318244,4559.6,4559.2,0.001]
[1755216271850,2.19304695,4559.9,4559.2,0.001]
[1755216272016,2.19319086,4559.6,4559.2,0.001]
[1755216272835,2.19322661,4559.5,4559.2,0.001]
[1755216273354,2.19312496,4559.8,4559.2,0.001]
[1755216273527,0.16752077,4560.0,4559.2,0.001]
[1755216273854,3.489,4560.0,4559.2,0.001]
[1755216274058,2.19331914,4559.3,4559.2,0.001]
[1755216274427,2.63191914,4559.3,4559.2,0.001]
[1755216274623,3.12091914,4559.3,4559.2,0.001]
[1755216275633,2.19331914,4559.3,4559.2,0.001]
[1755216275832,2.19331685,4559.4,4559.2,0.001]
[1755216276032,2.19317483,4559.6,4559.2,0.001]
[1755216276238,3.12091914,4559.3,4559.2,0.001]
[1755216276453,2.19331914,4559.3,4559.2,0.001]
[1755216276650,2.19317767,4559.6,4559.2,0.001]
[1755216276828,2.19317483,4559.6,4559.2,0.001]
[1755216277022,2.19322353,4559.5,4559.2,0.001]
[1755216277364,3.9356,4560.4,4559.2,2.19436442]
[1755216277531,0.1096,4559.9,4559.2,0.5982]
[1755216277940,0.1096,4559.9,4559.2,2.79156018]
[1755216278141,0.1096,4559.9,4559.2,0.1106]
[1755216278460,2.30264083,4559.9,4559.2,0.1106]
[1755216278661,2.19308209,4559.8,4559.2,0.1106]
[1755216278830,0.1096,4559.9,4559.2,0.1106]
[1755216279026,0.1096,4559.9,4559.2,2.30396663]
[1755216279223,0.1096,4559.9,4559.2,0.1106]
[1755216282161,0.1096,4559.9,4559.2,2.30396415]
[1755216282734,0.1096,4559.9,4559.2,0.1106]
[1755216283729,0.1096,4559.9,4559.3,4.248]
[1755216283929,0.1096,4559.9,4559.4,2.19327104]
[1755216284334,0.1096,4559.9,4559.5,4.248]
[1755216284535,0.34535907,4561.1,4559.8,0.1096]
[1755216284536,0.1096,4560.6,4559.8,0.1096]
[1755216284730,0.26995563,4560.6,4559.8,2.30267134]
[1755216286062,0.26995563,4560.6,4559.8,0.1096]
[1755216286261,2.19312674,4559.7,4559.6,4.248]
[1755216286632,3.35099941,4559.7,4559.6,4.248]
[1755216286955,3.12072674,4559.7,4559.6,4.248]
[1755216287158,2.19319943,4559.6,4559.2,0.001]
[1755216287337,0.9276,4559.7,4559.2,0.001]
[1755216287338,0.489,4559.7,4559.2,0.001]
[1755216287661,0.4386,4559.5,4559.2,0.001]
[1755216288165,2.19321283,4559.6,4559.2,0.001]
[1755216288365,0.4386,4559.4,4559.2,0.001]
[1755216288765,2.19263051,4560.8,4559.2,0.001]
[1755216288766,3.12091914,4559.3,4559.2,0.001]
[1755216288966,0.1096,4559.3,4559.2,0.001]
[1755216289969,2.74151914,4559.3,4559.2,0.001]
[1755216290154,3.72399343,4559.3,4559.2,0.001]
[1755216295355,4.19464995,4559.3,4559.2,0.001]
[1755216295873,3.70117566,4559.3,4559.2,0.001]
[1755216296439,4.1107814,4559.3,4559.2,0.001]
[1755216296645,34.1107814,4559.3,4559.2,0.001]
[1755216297370,2.19341536,4559.1,4558.3,0.0656]
[1755216297548,0.59007225,4558.9,4558.3,0.0656]
[1755216297748,0.58025652,4558.8,4558.3,0.0656]
[1755216297948,0.47065652,4558.7,4558.3,0.0656]
[1755216298153,0.47065652,4558.6,4558.3,0.0656]
[1755216298354,0.47065652,4558.5,4558.4,0.4997]
[1755216298550,3.484,4559.1,4558.3,0.0656]
[1755216298551,0.47065652,4558.9,4558.3,0.0656]
[1755216298783,0.47065652,4558.8,4558.3,0.0656]
[1755216298993,0.47065652,4558.7,4558.3,0.0656]
[1755216299188,0.47065652,4558.6,4558.3,0.0656]
[1755216299388,2.19349329,4559.0,4558.3,0.0156]
[1755216299579,0.47206714,4558.9,4558.3,0.0156]
[1755216299887,0.47206714,4558.8,4558.3,0.0156]
[1755216300087,0.47206714,4558.7,4558.3,0.0156]
[1755216300256,0.47206714,4558.6,4558.3,0.0156]
[1755216300459,0.1096,4559.0,4558.3,0.0156]
[1755216300655,0.47204634,4558.9,4558.3,0.0156]
[1755216300854,0.47204634,4558.8,4558.3,0.0156]
[1755216301090,0.47204634,4558.7,4558.3,0.0156]
[1755216301286,0.47204634,4558.6,4558.3,0.0156]
[1755216301496,0.59007225,4559.1,4558.3,0.0156]
[1755216301803,0.5551,4558.9,4558.3,0.0156]
[1755216302003,0.47201137,4558.8,4558.3,0.0156]
[1755216302239,0.47201137,4558.7,4558.3,0.0156]
[1755216302422,0.47201137,4558.6,4558.3,0.0156]
[1755216302729,0.47201137,4558.5,4558.3,0.0156]
[1755216302926,0.5551,4558.9,4558.3,0.0156]
[1755216303128,0.47210409,4558.8,4558.3,0.0156]
[1755216303348,0.47210409,4558.7,4558.4,2.19375219]
[1755216303496,0.47210409,4558.6,4558.3,0.0156]
[1755216303696,0.1096,4558.9,4558.3,2.20936273]
[1755216303907,0.47208033,4558.8,4558.3,2.20936273]
[1755216304100,0.47208033,4558.7,4558.4,3.484]
[1755216304404,0.1096,4559.2,4558.5,0.4997]
[1755216304731,0.47232992,4559.1,4558.4,3.484]
[1755216304899,0.47232992,4559.0,4558.4,3.484]
[1755216305225,0.47232992,4558.9,4558.4,3.484]
[1755216305427,0.47232992,4558.8,4558.4,3.484]
[1755216305726,0.47232992,4558.7,4558.4,3.484]
[1755216305918,2.78348851,4559.1,4558.4,3.484]
[1755216305919,0.47232992,4558.6,4558.4,3.484]
[1755216306115,2.78348851,4559.1,4558.4,3.484]
[1755216306321,0.47256969,4559.0,4558.4,3.484]
[1755216306518,0.47256969,4558.9,4558.4,3.484]
[1755216306724,0.47256969,4558.8,4558.4,3.484]
[1755216306922,0.47256969,4558.7,4558.4,3.484]
[1755216307127,0.47256969,4558.6,4558.4,3.484]
[1755216307325,0.59007225,4559.1,4558.4,3.484]
[1755216307505,0.47252463,4559.0,4558.4,3.484]
[1755216307706,0.47252463,4558.9,4558.4,3.484]
[1755216307929,0.47252463,4558.8,4558.4,4.47833881]
[1755216308118,0.47252463,4558.7,4558.4,4.47833881]
[1755216308418,0.47252463,4558.6,4558.4,4.47833881]
[1755216308623,2.78348783,4559.1,4558.4,4.47833881]
[1755216308819,0.47253438,4559.0,4558.4,3.484]
[1755216309022,0.47253438,4558.9,4558.4,3.484]
[1755216309226,0.47253438,4558.8,4558.4,3.484]
[1755216309424,0.47253438,4558.7,4558.4,3.484]
[1755216309636,0.47253438,4558.6,4558.4,3.484]
[1755216309942,0.4455,4558.9,4558.4,3.484]
[1755216310237,0.47253638,4558.8,4558.4,3.484]
[1755216310408,0.47253638,4558.7,4558.4,3.484]
[1755216310605,0.47253638,4558.6,4558.4,3.484]
[1755216310805,0.59007225,4559.1,4558.4,3.484]
[1755216311008,0.47258756,4559.0,4558.4,3.484]
[1755216311236,0.47258756,4558.9,4558.4,3.484]
[1755216311404,0.47258756,4558.8,4558.4,3.484]
[1755216311610,0.1096,4559.2,4558.4,3.484]
[1755216311816,0.47258652,4559.1,4558.4,3.484]
[1755216312005,0.47258652,4559.0,4558.4,7.732]
[1755216312204,0.47258652,4558.9,4558.4,7.732]
[1755216312428,0.47258652,4558.8,4558.4,7.732]
[1755216312639,2.19367697,4558.6,4558.4,4.248]
[1755216312836,0.91808652,4558.5,4558.4,4.248]
[1755216313359,2.19387405,4558.2,4557.9,0.001]
[1755216313508,2.19413726,4557.6,4557.5,0.001]
[1755216313710,32.66672378,4557.6,4557.5,0.001]
[1755216313910,33.42237852,4557.6,4557.5,0.001]
[1755216314125,34.36757852,4557.6,4557.5,0.001]
[1755216314844,38.08798359,4557.6,4557.5,0.001]
[1755216315357,37.09592378,4557.6,4557.5,0.001]
[1755216315812,37.30076971,4557.6,4557.5,0.001]
[1755216316017,3.11222378,4557.6,4557.5,0.001]
[1755216316217,3.70200391,4557.6,4557.5,0.001]
[1755216316418,4.20170391,4557.6,4557.5,0.001]
[1755216316828,3.61192378,4557.6,4557.5,0.001]
[1755216317171,0.63285058,4557.6,4557.5,0.001]
[1755216317312,0.16026406,4557.6,4557.5,0.001]
[1755216317512,0.47258652,4558.3,4557.5,0.5007]
[1755216317715,0.002,4558.9,4557.5,0.6531]
[1755216317975,0.002,4558.9,4557.6,0.78443779]
[1755216318256,0.002,4558.9,4558.2,2.1938235]
[1755216318420,0.002,4558.9,4558.8,2.1935597]
[1755216319049,0.002,4558.9,4558.8,2.6932597]
[1755216320148,0.002,4558.9,4558.7,5.67760651]
[1755216320454,0.002,4558.9,4558.8,2.1935597]
[1755216321452,0.002,4558.9,4558.7,5.67759989]
[1755216321761,0.002,4558.9,4558.8,2.6753597]
[1755216322258,0.002,4558.9,4558.7,3.6364]
[1755216322259,0.002,4558.9,4558.7,3.484]
[1755216322435,0.002,4558.9,4558.8,2.1935597]
[1755216322835,0.002,4558.9,4558.7,5.67759773]
[1755216323055,0.002,4558.9,4558.8,2.1935597]
[1755216323736,0.002,4558.9,4558.8,2.3031597]
[1755216324729,0.002,4558.9,4558.8,0.1096]
[1755216326261,0.4595,4558.9,4558.8,0.1096]
[1755216326428,0.4595,4558.9,4558.8,2.3031597]
[1755216326630,0.002,4558.9,4558.8,2.3031597]
[1755216327142,1e-08,4559.9,4559.8,2.19307864]
[1755216327341,0.002,4560.6,4560.5,2.19274202]
[1755216327672,0.002,4560.6,4560.5,5.78534202]
[1755216329165,0.16673717,4561.1,4561.0,2.19250164]
[1755216329323,0.16673717,4561.1,4561.0,5.67450164]
[1755216330051,0.002,4561.1,4561.0,5.67450164]
[1755216331039,2.19251094,4561.0,4560.8,3.482]
[1755216331238,0.9117,4561.1,4561.0,2.19250164]
[1755216331239,0.002,4561.1,4561.0,2.19250164]
[1755216332427,0.002,4561.1,4561.0,2.67430164]
[1755216332730,0.002,4561.6,4561.5,2.19226131]
[1755216332931,0.002,4561.6,4561.5,5.67326131]
[1755216333775,0.002,4561.6,4561.5,3.481]
[1755216333973,2.19242179,4561.2,4560.3,0.4575]
[1755216334274,0.9097,4561.1,4560.4,3.481]
[1755216334435,0.4522,4561.1,4560.4,3.481]
[1755216334788,0.43846831,4561.2,4560.6,2.19266156]
[1755216334989,0.43846831,4561.2,4560.7,3.481]
[1755216335156,0.43846831,4561.2,4560.8,3.481]
[1755216335358,0.4575,4561.1,4560.8,3.481]
[1755216335553,0.4575,4561.0,4560.8,3.481]
[1755216336778,0.9097,4560.9,4560.8,3.481]
[1755216338555,0.4575,4560.9,4560.8,3.481]
[1755216339592,0.4575,4560.9,4559.4,0.4818]
[1755216339593,1.17469149,4560.9,4559.5,4.248]
[1755216339797,0.1096,4560.6,4559.6,3.481]
[1755216340102,0.1096,4560.3,4559.7,0.1096]
[1755216340304,0.1096,4560.8,4560.2,0.1096]
[1755216340459,0.4575,4560.9,4560.2,3.5906]
[1755216340658,2.19283819,4560.3,4560.2,3.5906]
[1755216340872,2.19279829,4560.4,4560.2,3.5906]
[1755216341305,2.19264588,4560.7,4560.2,3.5906]
[1755216341306,2.65009583,4560.9,4560.2,3.5906]
[1755216341501,0.32118958,4560.8,4560.2,3.5906]
[1755216341665,2.51379318,4560.8,4560.2,3.5906]
[1755216341866,2.19264586,4560.7,4560.2,3.5906]
[1755216342060,0.32118958,4560.8,4560.2,3.5906]
[1755216342261,2.19278475,4560.5,4560.2,3.5906]
[1755216342777,0.4575,4560.9,4560.2,3.5906]
[1755216343000,2.19283819,4560.3,4559.2,0.001]
[1755216343292,0.4575,4560.5,4559.5,3.481]
[1755216343789,2.19283284,4560.4,4559.6,2.19317483]
[1755216344087,2.19288931,4560.2,4559.5,3.481]
[1755216344287,0.6,4560.5,4559.2,0.001]
[1755216344487,0.9097,4560.1,4559.5,3.481]
[1755216344791,2.19331914,4559.3,4559.2,0.001]
[1755216345291,3.10301914,4559.3,4559.2,0.001]
[1755216345661,3.10301914,4559.3,4557.5,0.001]
[1755216345662,2.19378946,4558.4,4558.3,3.481]
[1755216345892,2.65128946,4558.4,4558.3,3.481]
[1755216346093,2.19413188,4557.7,4557.5,0.001]
[1755216346263,2.19404413,4557.8,4557.5,0.001]
[1755216346457,2.65146515,4558.0,4557.5,0.001]
[1755216346663,2.19396515,4558.0,4557.5,0.001]
[1755216346864,0.4575,4557.8,4557.5,0.001]
[1755216347067,0.62289852,4557.8,4557.5,0.001]
[1755216347411,2.81694068,4557.8,4557.5,0.001]
[1755216347614,2.19413726,4557.6,4557.5,0.001]
[1755216348213,3.10383726,4557.6,4557.5,0.001]
[1755216349507,0.9097,4557.6,4557.5,0.001]